[Event "*** Titled Tuesday Blitz"]
[Site "Chess.com"]
[Date "2020.11.10"]
[Round "10"]
[White "BJthechessgod"]
[Black "RobPeresian"]
[Result "0-1"]
[WhiteElo "2298"]
[BlackElo "2448"]
[TimeControl "180+1"]
[EndTime "12:00:29 PST"]
[Termination "RobPeresian won by resignation"]

1. e4 {[%clk 0:03:00.9]} 1... c5 {[%clk 0:03:00.1]} 2. Nf3 {[%clk 0:02:59.5]}
2... d6 {[%clk 0:03:00.3]} 3. c3 {[%clk 0:02:59.2]} 3... Nf6 {[%clk 0:03:00]} 4.
Be2 {[%clk 0:03:00.1]} 4... Nc6 {[%clk 0:02:59.1]} 5. d4 {[%clk 0:02:56.5]} 5...
d5 {[%clk 0:02:58.3]} 6. e5 {[%clk 0:02:53.9]} 6... Nd7 {[%clk 0:02:58.9]} 7.
O-O {[%clk 0:02:46.6]} 7... e6 {[%clk 0:02:59.2]} 8. Bg5 {[%clk 0:02:41.8]} 8...
Qb6 {[%clk 0:02:58.7]} 9. b3 {[%clk 0:02:35.8]} 9... h6 {[%clk 0:02:57.2]} 10.
Be3 {[%clk 0:02:33.6]} 10... g5 {[%clk 0:02:56.9]} 11. h3 {[%clk 0:02:26.8]}
11... Be7 {[%clk 0:02:56.7]} 12. Nbd2 {[%clk 0:02:22.3]} 12... cxd4 {[%clk
0:02:56.2]} 13. cxd4 {[%clk 0:02:21.1]} 13... h5 {[%clk 0:02:56.6]} 14. Bxg5
{[%clk 0:02:16.9]} 14... Bxg5 {[%clk 0:02:41.6]} 15. Nxg5 {[%clk 0:02:17.8]}
15... Qxd4 {[%clk 0:02:41.9]} 16. Bxh5 {[%clk 0:02:08.8]} 16... Ndxe5 {[%clk
0:02:38.9]} 17. Kh1 {[%clk 0:01:35.9]} 17... Qh4 {[%clk 0:02:37.4]} 18. Bxf7+
{[%clk 0:00:39.5]} 18... Nxf7 {[%clk 0:02:38.3]} 19. Nxf7 {[%clk 0:00:40.1]}
19... Kxf7 {[%clk 0:02:37.2]} 20. Qf3+ {[%clk 0:00:41]} 20... Qf6 {[%clk
0:02:32.4]} 21. Qg3 {[%clk 0:00:40]} 21... Bd7 {[%clk 0:02:18.3]} 22. Nf3 {[%clk
0:00:40]} 22... Rag8 {[%clk 0:02:18]} 23. Qc7 {[%clk 0:00:36.9]} 23... Qe7
{[%clk 0:02:12.3]} 24. Rac1 {[%clk 0:00:35.2]} 24... e5 {[%clk 0:02:10.6]} 25.
Rxc6 {[%clk 0:00:34.6]} 25... Bxh3 {[%clk 0:01:49.9]} 26. Nxe5+ {[%clk
0:00:11.3]} 26... Kf8 {[%clk 0:01:39.4]} 27. Nd7+ {[%clk 0:00:08.1]} 27... Bxd7+
{[%clk 0:01:37]} 0-1

[Event "*** Titled Tuesday Blitz"]
[Site "Chess.com"]
[Date "2020.11.10"]
[Round "10"]
[White "Legendinunknown"]
[Black "andriipalchuk"]
[Result "1-0"]
[WhiteElo "2691"]
[BlackElo "2444"]
[TimeControl "180+1"]
[EndTime "12:00:38 PST"]
[Termination "Legendinunknown won by checkmate"]

1. e4 {[%clk 0:03:00.9]} 1... c6 {[%clk 0:02:12.9]} 2. d4 {[%clk 0:02:57.1]}
2... d5 {[%clk 0:02:13.8]} 3. exd5 {[%clk 0:02:54.4]} 3... cxd5 {[%clk
0:02:14.7]} 4. c4 {[%clk 0:02:54.9]} 4... Nf6 {[%clk 0:02:11.6]} 5. Nc3 {[%clk
0:02:54.8]} 5... e6 {[%clk 0:02:12.5]} 6. Nf3 {[%clk 0:02:51]} 6... Bb4 {[%clk
0:02:11.5]} 7. c5 {[%clk 0:02:46.9]} 7... O-O {[%clk 0:02:08.1]} 8. Bd3 {[%clk
0:02:46.4]} 8... b6 {[%clk 0:02:01.4]} 9. cxb6 {[%clk 0:02:43.6]} 9... axb6
{[%clk 0:01:57.7]} 10. O-O {[%clk 0:02:43.5]} 10... Ba6 {[%clk 0:01:41.8]} 11.
Ne5 {[%clk 0:02:39.3]} 11... Bxd3 {[%clk 0:01:40.1]} 12. Qxd3 {[%clk 0:02:40.2]}
12... Bxc3 {[%clk 0:01:35.4]} 13. bxc3 {[%clk 0:02:37.2]} 13... Qc7 {[%clk
0:01:08]} 14. Bf4 {[%clk 0:02:32.2]} 14... Rc8 {[%clk 0:01:07.2]} 15. Rfc1
{[%clk 0:02:29]} 15... Nc6 {[%clk 0:01:02.3]} 16. Qh3 {[%clk 0:02:22.2]} 16...
Nxe5 {[%clk 0:00:58.8]} 17. Bxe5 {[%clk 0:02:16.6]} 17... Qe7 {[%clk 0:00:57.8]}
18. Qh4 {[%clk 0:02:14.2]} 18... Ra3 {[%clk 0:00:47.1]} 19. Rab1 {[%clk
0:02:12.8]} 19... Raxc3 {[%clk 0:00:46]} 20. Rxc3 {[%clk 0:02:12]} 20... Rxc3
{[%clk 0:00:46.9]} 21. h3 {[%clk 0:02:12.3]} 21... Rc6 {[%clk 0:00:27.3]} 22. a4
{[%clk 0:02:09.4]} 22... Kf8 {[%clk 0:00:17.9]} 23. a5 {[%clk 0:02:06.9]} 23...
Qa7 {[%clk 0:00:11.8]} 24. axb6 {[%clk 0:01:56.7]} 24... Rxb6 {[%clk 0:00:12.7]}
25. Rc1 {[%clk 0:01:54.2]} 25... Qa3 {[%clk 0:00:12.2]} 26. Rc7 {[%clk
0:01:48.4]} 26... Ne8 {[%clk 0:00:07.4]} 27. Rd7 {[%clk 0:01:46.6]} 27... Rb1+
{[%clk 0:00:05.9]} 28. Kh2 {[%clk 0:01:46.3]} 28... f6 {[%clk 0:00:06.6]} 29.
Qxh7 {[%clk 0:01:45.7]} 29... Rh1+ {[%clk 0:00:04.3]} 30. Kxh1 {[%clk
0:01:45.3]} 30... Qc1+ {[%clk 0:00:05]} 31. Kh2 {[%clk 0:01:45.3]} 31... Qg5
{[%clk 0:00:05.7]} 32. Qh8# {[%clk 0:01:44.9]} 1-0

[Event "*** Titled Tuesday Blitz"]
[Site "Chess.com"]
[Date "2020.11.10"]
[Round "10"]
[White "Margency"]
[Black "ShahMatKanal"]
[Result "1-0"]
[WhiteElo "2684"]
[BlackElo "2499"]
[TimeControl "180+1"]
[EndTime "12:00:39 PST"]
[Termination "Margency won by checkmate"]

1. e4 {[%clk 0:03:00.9]} 1... d5 {[%clk 0:02:59.6]} 2. exd5 {[%clk 0:03:00.7]}
2... Qxd5 {[%clk 0:03:00.5]} 3. Nc3 {[%clk 0:03:00.8]} 3... Qd6 {[%clk
0:03:00.8]} 4. d4 {[%clk 0:03:01.1]} 4... Nf6 {[%clk 0:03:00.9]} 5. Nf3 {[%clk
0:03:01.6]} 5... c6 {[%clk 0:03:01.4]} 6. Ne5 {[%clk 0:03:01.8]} 6... Nbd7
{[%clk 0:03:01.2]} 7. f4 {[%clk 0:03:01.8]} 7... g6 {[%clk 0:02:57.4]} 8. Bc4
{[%clk 0:03:01.2]} 8... e6 {[%clk 0:02:55.7]} 9. O-O {[%clk 0:02:56.5]} 9... Bg7
{[%clk 0:02:53]} 10. a4 {[%clk 0:02:56.1]} 10... a5 {[%clk 0:02:49.4]} 11. b3
{[%clk 0:02:55.8]} 11... Nd5 {[%clk 0:02:41]} 12. Ne4 {[%clk 0:02:54.6]} 12...
Qc7 {[%clk 0:02:29.4]} 13. Ba3 {[%clk 0:02:52.8]} 13... c5 {[%clk 0:02:03.8]}
14. Nxc5 {[%clk 0:02:25.1]} 14... Nxc5 {[%clk 0:00:43]} 15. Bxc5 {[%clk
0:02:22.8]} 15... Ne3 {[%clk 0:00:31.4]} 16. Bb5+ {[%clk 0:02:19.1]} 16... Kd8
{[%clk 0:00:31.1]} 17. Qd3 {[%clk 0:01:34.7]} 17... Nxf1 {[%clk 0:00:29.8]} 18.
Bd6 {[%clk 0:01:26.6]} 18... Bxe5 {[%clk 0:00:17]} 19. dxe5 {[%clk 0:01:25]}
19... Qb6+ {[%clk 0:00:07]} 20. Bc5+ {[%clk 0:01:24.9]} 20... Kc7 {[%clk
0:00:06.3]} 21. Bxb6+ {[%clk 0:01:19.9]} 21... Kxb6 {[%clk 0:00:06.4]} 22. Qd4+
{[%clk 0:01:20.3]} 22... Kc7 {[%clk 0:00:05.6]} 23. Qd6# {[%clk 0:01:21.2]} 1-0

[Event "*** Titled Tuesday Blitz"]
[Site "Chess.com"]
[Date "2020.11.10"]
[Round "10"]
[White "kidagent"]
[Black "cottage_cheese"]
[Result "1-0"]
[WhiteElo "2298"]
[BlackElo "2161"]
[TimeControl "180+1"]
[EndTime "12:00:44 PST"]
[Termination "kidagent won on time"]

1. e4 {[%clk 0:03:00.9]} 1... e5 {[%clk 0:02:59.1]} 2. Nf3 {[%clk 0:03:00.7]}
2... Nc6 {[%clk 0:02:58.7]} 3. Bb5 {[%clk 0:03:01.3]} 3... a6 {[%clk 0:02:58.3]}
4. Ba4 {[%clk 0:03:01.1]} 4... Nf6 {[%clk 0:02:58.5]} 5. O-O {[%clk 0:03:00.2]}
5... Be7 {[%clk 0:02:58.7]} 6. Re1 {[%clk 0:02:59.3]} 6... b5 {[%clk 0:02:58.6]}
7. Bb3 {[%clk 0:02:59.7]} 7... d6 {[%clk 0:02:58.5]} 8. a4 {[%clk 0:02:59.8]}
8... Bd7 {[%clk 0:02:43.9]} 9. c3 {[%clk 0:02:58.5]} 9... O-O {[%clk 0:02:39.4]}
10. h3 {[%clk 0:02:57.1]} 10... Na5 {[%clk 0:02:35.8]} 11. Bc2 {[%clk
0:02:56.7]} 11... c5 {[%clk 0:02:35.4]} 12. d4 {[%clk 0:02:55.2]} 12... cxd4
{[%clk 0:02:19.9]} 13. cxd4 {[%clk 0:02:55.1]} 13... Nc6 {[%clk 0:01:53.1]} 14.
axb5 {[%clk 0:02:50.7]} 14... axb5 {[%clk 0:01:51.6]} 15. Rxa8 {[%clk
0:02:51.6]} 15... Qxa8 {[%clk 0:01:48.8]} 16. dxe5 {[%clk 0:02:48.9]} 16... dxe5
{[%clk 0:01:45.4]} 17. Nc3 {[%clk 0:02:46.6]} 17... Qb7 {[%clk 0:00:57]} 18. Nd5
{[%clk 0:02:44.8]} 18... Bd8 {[%clk 0:00:47.9]} 19. Bg5 {[%clk 0:02:33.5]} 19...
Nxd5 {[%clk 0:00:42]} 20. exd5 {[%clk 0:02:32.4]} 20... Nd4 {[%clk 0:00:42.4]}
21. Bxd8 {[%clk 0:02:21.5]} 21... Rxd8 {[%clk 0:00:28.7]} 22. Nxd4 {[%clk
0:02:17.2]} 22... exd4 {[%clk 0:00:29.6]} 23. Qxd4 {[%clk 0:02:16.6]} 23... Be6
{[%clk 0:00:12.4]} 24. Qh4 {[%clk 0:01:32.7]} 24... Rxd5 {[%clk 0:00:07.8]} 25.
Qxh7+ {[%clk 0:01:30.2]} 25... Kf8 {[%clk 0:00:08.1]} 26. Be4 {[%clk 0:01:29.5]}
1-0

[Event "*** Titled Tuesday Blitz"]
[Site "Chess.com"]
[Date "2020.11.10"]
[Round "10"]
[White "bazar-wokzal"]
[Black "GM_Crest"]
[Result "0-1"]
[WhiteElo "2502"]
[BlackElo "2699"]
[TimeControl "180+1"]
[EndTime "12:00:46 PST"]
[Termination "GM_Crest won by resignation"]

1. e4 {[%clk 0:02:54.1]} 1... e6 {[%clk 0:03:00.2]} 2. d4 {[%clk 0:02:54.2]}
2... d5 {[%clk 0:03:00.8]} 3. exd5 {[%clk 0:02:54.8]} 3... exd5 {[%clk
0:03:00.7]} 4. Nf3 {[%clk 0:02:55.7]} 4... Bd6 {[%clk 0:03:01]} 5. c4 {[%clk
0:02:56.1]} 5... Nf6 {[%clk 0:03:00.9]} 6. c5 {[%clk 0:02:55.8]} 6... Be7 {[%clk
0:03:01.1]} 7. Bd3 {[%clk 0:02:56.6]} 7... b6 {[%clk 0:03:01.7]} 8. cxb6 {[%clk
0:02:56.7]} 8... axb6 {[%clk 0:03:02.6]} 9. O-O {[%clk 0:02:57.3]} 9... O-O
{[%clk 0:03:01.6]} 10. Re1 {[%clk 0:02:57.2]} 10... c5 {[%clk 0:03:01.7]} 11.
Nc3 {[%clk 0:02:57.1]} 11... Na6 {[%clk 0:03:01.4]} 12. Bf4 {[%clk 0:02:46.6]}
12... Bb7 {[%clk 0:02:58]} 13. h3 {[%clk 0:02:45.3]} 13... h6 {[%clk 0:02:57.7]}
14. Ne5 {[%clk 0:02:43.2]} 14... Nc7 {[%clk 0:02:55.4]} 15. Bf5 {[%clk
0:02:33.1]} 15... Bd6 {[%clk 0:02:37.6]} 16. a3 {[%clk 0:02:20.9]} 16... Re8
{[%clk 0:02:37.3]} 17. Rc1 {[%clk 0:02:19.7]} 17... Ne6 {[%clk 0:02:31]} 18.
Bxe6 {[%clk 0:02:14.3]} 18... Rxe6 {[%clk 0:02:31.4]} 19. Nb5 {[%clk 0:02:13.6]}
19... Bf8 {[%clk 0:02:27.6]} 20. Ng4 {[%clk 0:02:00.1]} 20... Rxe1+ {[%clk
0:02:04.2]} 21. Qxe1 {[%clk 0:01:59.8]} 21... Nxg4 {[%clk 0:02:03.5]} 22. hxg4
{[%clk 0:01:59.8]} 22... Bc6 {[%clk 0:02:04.1]} 23. Nc3 {[%clk 0:01:39.8]} 23...
Qd7 {[%clk 0:02:03.1]} 24. f3 {[%clk 0:01:19.7]} 24... cxd4 {[%clk 0:02:01.9]}
25. Ne2 {[%clk 0:01:09.1]} 25... d3 {[%clk 0:01:54.1]} 26. Nd4 {[%clk
0:01:09.3]} 26... Bc5 {[%clk 0:01:53.9]} 27. Qf2 {[%clk 0:01:09.2]} 27... Ba4
{[%clk 0:01:31.7]} 28. b4 {[%clk 0:01:05.3]} 28... Bxd4 {[%clk 0:01:22]} 29.
Qxd4 {[%clk 0:01:05.5]} 29... Bc2 {[%clk 0:01:22.2]} 30. Qxb6 {[%clk 0:01:05]}
30... Rxa3 {[%clk 0:01:21.4]} 31. b5 {[%clk 0:00:58.6]} 31... Rb3 {[%clk
0:01:20.5]} 32. Qc6 {[%clk 0:00:58.1]} 32... Qa7+ {[%clk 0:01:10]} 33. Kh2
{[%clk 0:00:55.6]} 33... Qd4 {[%clk 0:01:05.6]} 34. Re1 {[%clk 0:00:47.2]} 34...
Qxf4+ {[%clk 0:01:04.7]} 0-1

[Event "*** Titled Tuesday Blitz"]
[Site "Chess.com"]
[Date "2020.11.10"]
[Round "10"]
[White "jefferyx"]
[Black "dropstoneDP"]
[Result "0-1"]
[WhiteElo "2975"]
[BlackElo "2951"]
[TimeControl "180+1"]
[EndTime "12:00:47 PST"]
[Termination "dropstoneDP won by resignation"]

1. e4 {[%clk 0:03:00.9]} 1... e5 {[%clk 0:03:00.4]} 2. Nf3 {[%clk 0:03:01.6]}
2... Nc6 {[%clk 0:03:00.9]} 3. Nc3 {[%clk 0:03:02.4]} 3... Nf6 {[%clk
0:03:01.3]} 4. d4 {[%clk 0:03:03.2]} 4... exd4 {[%clk 0:03:02.2]} 5. Nxd4 {[%clk
0:03:04.1]} 5... Bb4 {[%clk 0:03:01.9]} 6. Nxc6 {[%clk 0:03:04.8]} 6... bxc6
{[%clk 0:03:02.8]} 7. Bd3 {[%clk 0:03:05.5]} 7... O-O {[%clk 0:03:02.7]} 8. O-O
{[%clk 0:03:06.1]} 8... d5 {[%clk 0:03:02.9]} 9. exd5 {[%clk 0:03:07]} 9... cxd5
{[%clk 0:03:03]} 10. Qf3 {[%clk 0:03:06.5]} 10... c6 {[%clk 0:02:54.1]} 11. h3
{[%clk 0:03:06.1]} 11... Re8 {[%clk 0:02:52.3]} 12. Bf4 {[%clk 0:03:06.3]} 12...
Bd6 {[%clk 0:02:48.8]} 13. Rfe1 {[%clk 0:03:05.8]} 13... Be6 {[%clk 0:02:48.8]}
14. Ne2 {[%clk 0:03:05.8]} 14... Qb8 {[%clk 0:02:44.4]} 15. b3 {[%clk
0:03:05.5]} 15... a5 {[%clk 0:02:41.4]} 16. Rad1 {[%clk 0:03:05.2]} 16... a4
{[%clk 0:02:38.6]} 17. Qg3 {[%clk 0:02:42.8]} 17... Bxf4 {[%clk 0:02:34.2]} 18.
Nxf4 {[%clk 0:02:43.7]} 18... a3 {[%clk 0:02:25.4]} 19. c4 {[%clk 0:02:41.2]}
19... dxc4 {[%clk 0:02:18.3]} 20. bxc4 {[%clk 0:02:41.1]} 20... Qc7 {[%clk
0:01:40.8]} 21. Nxe6 {[%clk 0:02:14.2]} 21... Qxg3 {[%clk 0:01:40.3]} 22. fxg3
{[%clk 0:02:15.1]} 22... Rxe6 {[%clk 0:01:37.8]} 23. Rxe6 {[%clk 0:02:15.2]}
23... fxe6 {[%clk 0:01:38.7]} 24. Bc2 {[%clk 0:02:11.9]} 24... Kf7 {[%clk
0:01:36.6]} 25. Kf2 {[%clk 0:02:11.4]} 25... Ke7 {[%clk 0:01:36.3]} 26. Ke3
{[%clk 0:02:11.8]} 26... Rb8 {[%clk 0:01:18.6]} 27. Rb1 {[%clk 0:02:11.8]} 27...
Rxb1 {[%clk 0:01:16.7]} 28. Bxb1 {[%clk 0:02:12.7]} 28... Kd6 {[%clk 0:01:17.5]}
29. Kd4 {[%clk 0:02:06.4]} 29... e5+ {[%clk 0:01:17.2]} 30. Kc3 {[%clk 0:02:07]}
30... Kc5 {[%clk 0:01:18]} 31. Kb3 {[%clk 0:01:45.8]} 31... e4 {[%clk
0:01:13.7]} 32. Kxa3 {[%clk 0:01:46.1]} 32... e3 {[%clk 0:00:54.2]} 33. Bd3
{[%clk 0:01:46]} 33... Kd4 {[%clk 0:00:54.8]} 34. Be2 {[%clk 0:01:46.5]} 34...
Kc3 {[%clk 0:00:52]} 35. Ka4 {[%clk 0:01:46.7]} 35... Ne4 {[%clk 0:00:51.4]} 36.
Ka5 {[%clk 0:01:47]} 36... Kd2 {[%clk 0:00:17.1]} 37. Bg4 {[%clk 0:01:45.5]}
37... Nf6 {[%clk 0:00:16.8]} 38. Bf3 {[%clk 0:01:45.7]} 38... Nd7 {[%clk
0:00:17.5]} 39. Kb4 {[%clk 0:01:44.2]} 39... Ne5 {[%clk 0:00:17.7]} 0-1

[Event "*** Titled Tuesday Blitz"]
[Site "Chess.com"]
[Date "2020.11.10"]
[Round "10"]
[White "gumimis"]
[Black "Praslov"]
[Result "1-0"]
[WhiteElo "2215"]
[BlackElo "2377"]
[TimeControl "180+1"]
[EndTime "12:00:47 PST"]
[Termination "gumimis won on time"]

1. e4 {[%clk 0:02:59.7]} 1... c6 {[%clk 0:02:59]} 2. d4 {[%clk 0:02:59.4]} 2...
d5 {[%clk 0:02:59.5]} 3. Nc3 {[%clk 0:03:00.3]} 3... dxe4 {[%clk 0:02:59.4]} 4.
Nxe4 {[%clk 0:03:01]} 4... Bf5 {[%clk 0:02:58.8]} 5. Ng3 {[%clk 0:03:01.3]} 5...
Bg6 {[%clk 0:02:59.3]} 6. h4 {[%clk 0:03:01.6]} 6... h6 {[%clk 0:02:58.8]} 7.
Nf3 {[%clk 0:03:02.2]} 7... Nd7 {[%clk 0:02:58.9]} 8. h5 {[%clk 0:03:02.6]} 8...
Bh7 {[%clk 0:02:58.9]} 9. Bd3 {[%clk 0:03:03.2]} 9... Bxd3 {[%clk 0:02:59.2]}
10. Qxd3 {[%clk 0:03:04.1]} 10... e6 {[%clk 0:02:58.8]} 11. Bd2 {[%clk 0:03:04]}
11... Ngf6 {[%clk 0:02:58.3]} 12. O-O-O {[%clk 0:03:04.6]} 12... Be7 {[%clk
0:02:58.3]} 13. Kb1 {[%clk 0:03:03.2]} 13... Qb6 {[%clk 0:02:57.6]} 14. c4
{[%clk 0:02:58.3]} 14... Rd8 {[%clk 0:02:53]} 15. Qc2 {[%clk 0:02:52.5]} 15...
c5 {[%clk 0:02:45.2]} 16. d5 {[%clk 0:02:39.3]} 16... O-O {[%clk 0:02:14.8]} 17.
dxe6 {[%clk 0:02:36]} 17... fxe6 {[%clk 0:02:13.2]} 18. Rhe1 {[%clk 0:02:33.8]}
18... Rfe8 {[%clk 0:01:36]} 19. Bxh6 {[%clk 0:02:21.5]} 19... Nf8 {[%clk
0:01:15.3]} 20. Bf4 {[%clk 0:01:58.3]} 20... Rxd1+ {[%clk 0:01:12.5]} 21. Rxd1
{[%clk 0:01:58.3]} 21... Qc6 {[%clk 0:01:09.5]} 22. h6 {[%clk 0:01:54.4]} 22...
Ng4 {[%clk 0:00:55.3]} 23. hxg7 {[%clk 0:01:49.1]} 23... Nh7 {[%clk 0:00:50.8]}
24. Rh1 {[%clk 0:01:42.5]} 24... Ngf6 {[%clk 0:00:36.9]} 25. Ne5 {[%clk
0:01:35.8]} 25... Qxg2 {[%clk 0:00:17.7]} 26. Qg6 {[%clk 0:01:34.8]} 1-0

[Event "*** Titled Tuesday Blitz"]
[Site "Chess.com"]
[Date "2020.11.10"]
[Round "10"]
[White "petrkostenko"]
[Black "Tenamu"]
[Result "1-0"]
[WhiteElo "2455"]
[BlackElo "2315"]
[TimeControl "180+1"]
[EndTime "12:00:52 PST"]
[Termination "petrkostenko won by resignation"]

1. c4 {[%clk 0:01:35.1]} 1... e6 {[%clk 0:03:00.9]} 2. g3 {[%clk 0:01:34.1]}
2... Nf6 {[%clk 0:02:59.6]} 3. Bg2 {[%clk 0:01:34.4]} 3... d5 {[%clk 0:02:59.4]}
4. Nf3 {[%clk 0:01:35]} 4... Be7 {[%clk 0:02:59.3]} 5. O-O {[%clk 0:01:34.2]}
5... O-O {[%clk 0:02:59.9]} 6. b3 {[%clk 0:01:34.1]} 6... c5 {[%clk 0:03:00.1]}
7. Bb2 {[%clk 0:01:33.2]} 7... Nc6 {[%clk 0:03:01]} 8. e3 {[%clk 0:01:33.2]}
8... b6 {[%clk 0:03:00.3]} 9. Nc3 {[%clk 0:01:31.8]} 9... Bb7 {[%clk 0:03:00.8]}
10. cxd5 {[%clk 0:01:29.7]} 10... exd5 {[%clk 0:03:01.7]} 11. d4 {[%clk
0:01:29.3]} 11... Rc8 {[%clk 0:03:02.3]} 12. Rc1 {[%clk 0:01:29.1]} 12... a6
{[%clk 0:03:00.9]} 13. Re1 {[%clk 0:01:28.8]} 13... Qd7 {[%clk 0:03:01.2]} 14.
Ne5 {[%clk 0:01:22.5]} 14... Qe6 {[%clk 0:02:57.8]} 15. Ne2 {[%clk 0:01:21.4]}
15... Rfd8 {[%clk 0:02:53]} 16. Nf4 {[%clk 0:01:20.3]} 16... Qf5 {[%clk
0:02:52.6]} 17. Bh3 {[%clk 0:01:19]} 17... Qg5 {[%clk 0:02:52.2]} 18. Bxc8
{[%clk 0:01:17.6]} 18... Rxc8 {[%clk 0:02:52.4]} 19. Nxc6 {[%clk 0:01:11.7]}
19... Bxc6 {[%clk 0:02:51.7]} 20. Qe2 {[%clk 0:01:05.6]} 20... Bb5 {[%clk
0:02:48]} 21. Qf3 {[%clk 0:01:05.3]} 21... Rd8 {[%clk 0:02:46.8]} 22. dxc5
{[%clk 0:01:03.7]} 22... bxc5 {[%clk 0:02:47.7]} 23. Red1 {[%clk 0:01:00]} 23...
Bc6 {[%clk 0:02:45.9]} 24. b4 {[%clk 0:00:54.5]} 24... c4 {[%clk 0:02:44.5]} 25.
Rxc4 {[%clk 0:00:53.8]} 25... dxc4 {[%clk 0:02:43.7]} 26. Rxd8+ {[%clk
0:00:51.9]} 26... Bxd8 {[%clk 0:02:44.6]} 27. Qxc6 {[%clk 0:00:51.8]} 27... Qb5
{[%clk 0:02:44.2]} 28. Qxb5 {[%clk 0:00:44.4]} 28... axb5 {[%clk 0:02:45.1]} 29.
Kf1 {[%clk 0:00:41.8]} 29... Nd7 {[%clk 0:02:42.6]} 30. Nd5 {[%clk 0:00:40.7]}
30... f6 {[%clk 0:02:39.7]} 31. Ke2 {[%clk 0:00:39.2]} 31... Nb6 {[%clk
0:02:35.5]} 32. Nc3 {[%clk 0:00:36]} 32... Be7 {[%clk 0:02:29.1]} 33. a3 {[%clk
0:00:34.8]} 33... Kf7 {[%clk 0:02:28.8]} 34. Nxb5 {[%clk 0:00:33.3]} 34... Ke6
{[%clk 0:02:29.7]} 35. Bd4 {[%clk 0:00:31.4]} 35... Na4 {[%clk 0:02:27.3]} 36.
Nc3 {[%clk 0:00:30.7]} 36... Nb2 {[%clk 0:02:25.4]} 37. e4 {[%clk 0:00:30.5]}
37... Nd3 {[%clk 0:02:24.1]} 38. f4 {[%clk 0:00:29.5]} 38... g5 {[%clk
0:02:20.9]} 39. Ke3 {[%clk 0:00:28]} 39... Kd6 {[%clk 0:02:21.5]} 40. b5 {[%clk
0:00:24.4]} 40... Kc7 {[%clk 0:02:20.4]} 41. a4 {[%clk 0:00:23.7]} 41... Nb4
{[%clk 0:02:15.5]} 42. Nd5+ {[%clk 0:00:19.9]} 42... Nxd5+ {[%clk 0:02:15.3]}
43. exd5 {[%clk 0:00:20]} 43... Kd6 {[%clk 0:02:15.5]} 44. Ke4 {[%clk
0:00:19.8]} 44... f5+ {[%clk 0:02:14.7]} 45. Kxf5 {[%clk 0:00:19.8]} 45... Kxd5
{[%clk 0:02:15.5]} 46. Bc3 {[%clk 0:00:19.6]} 46... gxf4 {[%clk 0:02:15.4]} 47.
gxf4 {[%clk 0:00:19.3]} 47... Kc5 {[%clk 0:02:13.9]} 48. Ke6 {[%clk 0:00:17.3]}
48... Bf8 {[%clk 0:02:14.3]} 49. f5 {[%clk 0:00:17.2]} 1-0

[Event "*** Titled Tuesday Blitz"]
[Site "Chess.com"]
[Date "2020.11.10"]
[Round "10"]
[White "picturesquecheck"]
[Black "PawnEatingZombie"]
[Result "1-0"]
[WhiteElo "2104"]
[BlackElo "2144"]
[TimeControl "180+1"]
[EndTime "12:00:56 PST"]
[Termination "picturesquecheck won by resignation"]

1. e4 {[%clk 0:03:00.9]} 1... c6 {[%clk 0:02:59.6]} 2. d4 {[%clk 0:03:00]} 2...
d5 {[%clk 0:03:00.2]} 3. Nd2 {[%clk 0:03:00.4]} 3... dxe4 {[%clk 0:02:59.9]} 4.
Nxe4 {[%clk 0:03:01.3]} 4... Bf5 {[%clk 0:03:00.2]} 5. Ng3 {[%clk 0:03:01.7]}
5... Bg6 {[%clk 0:03:00.8]} 6. h4 {[%clk 0:03:02.6]} 6... h6 {[%clk 0:03:00.5]}
7. Nf3 {[%clk 0:03:03.5]} 7... Nd7 {[%clk 0:03:00.8]} 8. h5 {[%clk 0:03:04.4]}
8... Bh7 {[%clk 0:03:00.6]} 9. Bd3 {[%clk 0:03:05.3]} 9... Bxd3 {[%clk 0:03:01]}
10. Qxd3 {[%clk 0:03:06.2]} 10... e6 {[%clk 0:03:01.2]} 11. Bd2 {[%clk
0:03:07.1]} 11... Ngf6 {[%clk 0:03:01]} 12. O-O-O {[%clk 0:03:07.6]} 12... Be7
{[%clk 0:03:00.8]} 13. Kb1 {[%clk 0:03:07.1]} 13... Qb6 {[%clk 0:03:01.1]} 14.
c4 {[%clk 0:03:05.4]} 14... Rd8 {[%clk 0:03:00.4]} 15. Bc3 {[%clk 0:03:05]}
15... O-O {[%clk 0:02:34]} 16. Qe2 {[%clk 0:03:01.6]} 16... Bb4 {[%clk
0:02:24.9]} 17. Bxb4 {[%clk 0:02:58]} 17... Qxb4 {[%clk 0:02:24.5]} 18. a3
{[%clk 0:02:57.1]} 18... Qb6 {[%clk 0:02:19.3]} 19. Ne4 {[%clk 0:02:50.8]} 19...
Nxe4 {[%clk 0:02:18.4]} 20. Qxe4 {[%clk 0:02:51.7]} 20... Nf6 {[%clk 0:02:16.8]}
21. Qe2 {[%clk 0:02:51.2]} 21... c5 {[%clk 0:02:11.2]} 22. dxc5 {[%clk
0:02:45.1]} 22... Qxc5 {[%clk 0:02:09.7]} 23. Nd2 {[%clk 0:02:28.8]} 23... Rd4
{[%clk 0:01:41.7]} 24. Ka2 {[%clk 0:02:13.7]} 24... Qc7 {[%clk 0:01:02.5]} 25.
Rc1 {[%clk 0:02:05.6]} 25... Rfd8 {[%clk 0:00:59.5]} 26. Nb3 {[%clk 0:02:04.5]}
26... Re4 {[%clk 0:00:51.5]} 27. Qc2 {[%clk 0:02:00]} 27... a5 {[%clk 0:00:48]}
28. f3 {[%clk 0:01:58]} 28... Re3 {[%clk 0:00:46.1]} 29. Rhd1 {[%clk 0:01:40.3]}
29... Rxd1 {[%clk 0:00:33.2]} 30. Rxd1 {[%clk 0:01:39.8]} 30... b6 {[%clk
0:00:30.4]} 31. Nd4 {[%clk 0:01:38.5]} 31... Nxh5 {[%clk 0:00:21.5]} 32. Nb5
{[%clk 0:01:36.4]} 32... Qe7 {[%clk 0:00:20.8]} 33. Rd6 {[%clk 0:01:20.8]} 33...
Ng3 {[%clk 0:00:19.2]} 34. Rxb6 {[%clk 0:01:18.8]} 34... Re2 {[%clk 0:00:19.1]}
35. Rb8+ {[%clk 0:01:18.5]} 1-0